fUSD/lending_fUSD_20260217
["ID","MTS","AMOUNT","RATE_DAILY","PERIOD"]
[405825294,1771342240727,-151.0,0.0001,2]
[405825295,1771342240736,-151.0,0.0001,2]
[405825296,1771342240746,-151.0,0.0001,2]
[405825297,1771342240755,-151.0,0.0001,2]
[405825298,1771342240765,-151.0,0.0001,2]
[405825299,1771342240774,-151.0,0.0001,2]
[405825300,1771342240784,-151.0,0.0001,2]
[405825301,1771342240794,-151.0,0.0001,2]
[405825302,1771342240803,-151.0,0.0001,2]
[405825303,1771342240812,-151.0,0.0001,2]
[405825304,1771342240822,-151.0,0.0001,2]
[405825305,1771342240831,-151.0,0.0001,2]
[405825306,1771342240841,-151.0,0.0001,2]
[405825307,1771342240851,-151.0,0.0001,2]
[405825308,1771342240860,-151.0,0.0001,2]
[405825309,1771342240870,-151.0,0.0001,2]
[405825310,1771342240879,-151.0,0.0001,2]
[405825311,1771342240889,-238.3251955,0.0001,2]
[405825312,1771342240899,-337.0,0.0001,2]
[405825313,1771342240909,-337.0,0.0001,2]
[405825314,1771342240920,-337.85061866,0.0001,2]
[405825315,1771342240930,-758.85799306,0.0001,2]
[405825316,1771342240940,-758.85799306,0.0001,2]
[405825317,1771342240950,-270.43,0.00010046,2]
[405825318,1771342240959,-153.0,0.00010248,3]
[405825319,1771342240970,-500.0,0.00010274,2]
[405825320,1771342240979,-898.32890406,0.00010292,2]
[405825321,1771342240989,-20355.78997856,0.00010296,2]
[405825322,1771342240999,-250.0,0.00010423,2]
[405825323,1771342241008,-2562.0,0.00010493,2]
[405825324,1771342241018,-270.43,0.00010502,2]
[405825325,1771342241027,-799.75222393,0.00010512,2]
[405825326,1771342241036,-494.56310308,0.00010512,2]
[405825327,1771342241046,-500.0,0.00010548,2]
[405825328,1771342241056,-200.0,0.00010548,2]
[405825329,1771342241065,-200.0,0.00010548,2]
[405825330,1771342241075,-500.0,0.00010548,2]
[405825331,1771342241084,-3292.0,0.00010647,2]
[405825332,1771342241094,-1160.0,0.00010712,2]
[405825333,1771342241103,-1920.0,0.00010734,2]
[405825334,1771342241113,-500.0,0.00010779,2]
[405825335,1771342241123,-500.0,0.00010779,2]
[405825336,1771342241132,-160.37289206,0.00010779,2]
[405825337,1771342241141,-500.0,0.00010779,2]
[405825338,1771342241152,-500.0,0.00010779,2]
[405825339,1771342241162,-306.10762696,0.00010779,2]
[405825340,1771342241172,-500.0,0.00010779,2]
[405825341,1771342241182,-615.3930462,0.00010779,2]
[405825342,1771342241191,-500.0,0.00010779,2]
[405825343,1771342241201,-239.8459294,0.00010779,2]
[405825344,1771342241210,-500.0,0.00010779,2]
[405825345,1771342241221,-500.0,0.00010779,2]
[405825346,1771342241231,-166.78412047,0.00010779,2]
[405825347,1771342241241,-500.0,0.00010779,2]
[405825348,1771342241251,-500.0,0.00010779,2]
[405825349,1771342241261,-500.0,0.00010779,2]
[405825350,1771342241271,-500.0,0.00010779,2]
[405825351,1771342241281,-500.0,0.00010779,2]
[405825352,1771342241290,-501.82748142,0.00010779,2]
[405825353,1771342241299,-500.0,0.00010822,2]
[405825354,1771342241308,-736.0,0.00010883,2]
[405825355,1771342241318,-4434.33981178,0.000109,2]
[405825356,1771342241327,-4434.33981171,0.000109,2]
[405825357,1771342241337,-4434.33981171,0.00010906,2]
[405825358,1771342241353,-234.9,0.00010957,2]
[405825359,1771342241362,-500.0,0.00010959,2]
[405825360,1771342241372,-226.88409827,0.00010959,2]
[405825361,1771342241381,-166.66,0.00010959,2]
[405825362,1771342241390,-270.43,0.00010959,2]
[405825363,1771342241400,-5000.0,0.00011,2]
[405825364,1771342241410,-6034.81891893,0.00011,2]
[405825365,1771342241419,-166.66,0.00011068,2]
[405825366,1771342241429,-500.0,0.00011096,2]
[405825367,1771342241438,-200.0,0.00011096,2]
[405825368,1771342241447,-200.0,0.00011096,2]
[405825369,1771342241457,-500.0,0.00011096,2]
[405825370,1771342241468,-35716.8547724,0.00011099,2]
[405825371,1771342241478,-35716.85477238,0.00011099,2]
[405825372,1771342241492,-35716.85477238,0.00011099,2]
[405825373,1771342241501,-42818.47928217,0.00011099,2]
[405825374,1771342241510,-42818.47928215,0.00011099,2]
[405825375,1771342241521,-42818.47928215,0.00011099,2]
[405825376,1771342241530,-42818.47928215,0.00011099,2]
[405825377,1771342241540,-42818.47928215,0.00011099,2]
[405825378,1771342241549,-203235.0,0.000111,2]
[405825379,1771342241560,-166.66,0.00011109,2]
[405825380,1771342241570,-977.0,0.00011172,2]
[405825381,1771342241579,-166.66,0.00011178,2]
[405825382,1771342241588,-816.0,0.00011195,2]
[405825383,1771342241598,-1501.0,0.00011217,2]
[405825384,1771342241608,-9232.31,0.00011233,2]
[405825385,1771342241617,-601.0,0.00011239,2]
[405825386,1771342241627,-166.66,0.00011288,2]
[405825387,1771342241636,-1000.0,0.00011327,2]
[405825388,1771342241646,-1000.0,0.00011327,2]
[405825389,1771342241655,-1000.0,0.00011327,2]
[405825390,1771342241664,-1000.0,0.00011327,2]
[405825391,1771342241674,-1002.2822894,0.00011327,2]
[405825392,1771342241684,-1000.0,0.00011327,2]
[405825393,1771342241693,-1000.0,0.00011327,2]
[405825394,1771342241703,-1143.72920629,0.00011327,2]
[405825395,1771342241713,-844.71223806,0.00011327,2]
[405825396,1771342241722,-162.38741444,0.00011327,2]
[405825397,1771342241732,-428.11420057,0.00011327,2]
[405825398,1771342241741,-1000.0,0.00011327,2]
[405825399,1771342241751,-500.0,0.0001137,2]
[405825400,1771342241760,-166.66,0.00011397,2]
[405825401,1771342241770,-270.43,0.00011416,2]
[405825402,1771342241780,-35716.85477238,0.00011467,2]
[405825403,1771342241789,-166.66,0.00011475,2]
[405825404,1771342241799,-42818.47928215,0.00011499,2]
[405825405,1771342241808,-5530.0,0.000115,3]
[405825406,1771342241817,-166.66,0.00011507,2]
[405825407,1771342241827,-500.0,0.00011644,2]
[405825408,1771342241840,-200.0,0.00011644,2]
[405825409,1771342241850,-200.0,0.00011644,2]
[405825410,1771342241860,-500.0,0.00011644,2]
[405825411,1771342241869,-13164.786538,0.00011697,2]
[405825412,1771342241879,-4609.0,0.00011711,2]
[405825413,1771342241888,-1926.177061,0.00011712,2]
[405825414,1771342241897,-799.75222388,0.00011743,2]
[405825415,1771342241907,-32850.4601,0.00011775,2]
[405825416,1771342241916,-259.7041,0.00011775,2]
[405825417,1771342241925,-1000.0,0.00011775,2]
[405825418,1771342241935,-5091.588,0.00011775,2]
[405825419,1771342241944,-5530.0,0.000118,5]
[405825420,1771342241954,-191.257407,0.00011837,2]
[405825421,1771342241965,-5642.051374,0.00011837,2]
[405825422,1771342241974,-310.180283,0.00011839,2]
[405825423,1771342241984,-825.504455,0.00011839,2]
[405825424,1771342241994,-166.66,0.00011842,2]
[405825425,1771342242004,-270.43,0.00011872,2]
[405825426,1771342242013,-1089.19821008,0.00011875,2]
[405825427,1771342242023,-410.04055558,0.00011875,2]
[405825428,1771342242032,-1500.0,0.00011875,2]
[405825429,1771342242041,-502.71949542,0.00011875,2]
[405825430,1771342242052,-432.93855102,0.00011875,2]
[405825431,1771342242063,-1500.0,0.00011875,2]
[405825432,1771342242072,-500.0,0.00011918,2]
[405825433,1771342242082,-1252.0,0.00011971,2]
[405825434,1771342242091,-5000.0,0.00012,2]
[405825435,1771342242100,-30336.8,0.00012055,2]
[405825436,1771342242110,-153.0,0.00012108,3]
[405825437,1771342242119,-42818.47928215,0.00012151,2]
[405825438,1771342242129,-500.0,0.00012192,2]
[405825439,1771342242139,-200.0,0.00012192,2]
[405825440,1771342242148,-200.0,0.00012192,2]
[405825441,1771342242158,-500.0,0.00012192,2]
[405825442,1771342242168,-166.66,0.00012209,2]
[405825443,1771342242178,-4434.33981171,0.00012305,2]
[405825444,1771342242188,-270.43,0.00012329,2]
[405825445,1771342242197,-1175.15043052,0.00012423,2]
[405825446,1771342242206,-2000.0,0.00012423,2]
[405825447,1771342242216,-500.0,0.00012465,2]
[405825448,1771342242226,-35716.85477238,0.00012537,2]
[405825449,1771342242235,-166.66,0.00012575,2]
[405825450,1771342242244,-500.0,0.00012739,2]
[405825451,1771342242254,-200.0,0.0001274,2]
[405825452,1771342242263,-200.0,0.0001274,2]
[405825453,1771342242272,-500.0,0.0001274,2]
[405825454,1771342242281,-42818.47928215,0.00012802,2]
[405825455,1771342242291,-5186.32,0.00012822,2]
[405825456,1771342242301,-6453.0,0.00012882,2]
[405825457,1771342242310,-70181.97252511,0.000129,2]
[405825458,1771342242319,-166.66,0.00012942,2]
[405825459,1771342242329,-1502.39964348,0.00012971,2]
[405825460,1771342242338,-799.75222388,0.00012975,2]
[405825461,1771342242347,-5000.0,0.00013,2]
[405825462,1771342242356,-791.09059454,0.00013,2]
[405825463,1771342242366,-6963.77975044,0.00013004,2]
[405825464,1771342242375,-193.89094504,0.00013004,2]
[405825465,1771342242384,-6247.97800353,0.00013004,2]
[405825466,1771342242394,-500.0,0.00013013,2]
[405825467,1771342242403,-1875.0,0.00013173,2]
[405825468,1771342242412,-500.0,0.00013287,2]
[405825469,1771342242421,-200.0,0.00013288,2]
[405825470,1771342242430,-200.0,0.00013288,2]
[405825471,1771342242440,-500.0,0.00013288,2]
[405825472,1771342242449,-42818.47928215,0.00013454,2]
[405825473,1771342242458,-500.0,0.00013561,2]
[405825474,1771342242469,-35716.85477238,0.00013607,2]
[405825475,1771342242480,-500.0,0.00013698,2]
[405825476,1771342242493,-276.96200014,0.00013698,2]
[405825477,1771342242502,-509.0,0.00013698,2]
[405825478,1771342242512,-349.69131006,0.00013698,2]
[405825479,1771342242522,-1360.75,0.00013698,2]
[405825480,1771342242531,-456.05800986,0.00013698,2]
[405825481,1771342242541,-500.0,0.00013698,2]
[405825482,1771342242550,-872.66,0.00013698,2]
[405825483,1771342242562,-500.0,0.00013698,2]
[405825484,1771342242571,-971.38,0.00013698,2]
[405825485,1771342242581,-500.0,0.00013698,2]
[405825486,1771342242591,-500.0,0.00013698,2]
[405825487,1771342242600,-500.0,0.00013698,2]
[405825488,1771342242610,-500.0,0.00013698,2]
[405825489,1771342242619,-500.0,0.00013698,2]
[405825490,1771342242628,-420.74787119,0.00013698,2]
[405825491,1771342242637,-712.99,0.00013699,2]
[405825492,1771342242647,-704.93,0.00013699,2]
[405825493,1771342242656,-4434.33981171,0.00013703,2]
[405825494,1771342242665,-500.0,0.00013835,2]
[405825495,1771342242674,-200.0,0.00013836,2]
[405825496,1771342242683,-200.0,0.00013836,2]
[405825497,1771342242693,-500.0,0.00013836,2]
[405825498,1771342242702,-153.0,0.00013967,3]
[405825499,1771342242712,-5000.0,0.00014,2]
[405825500,1771342242723,-500.0,0.00014,2]
[405825501,1771342242732,-669.72717537,0.00014,2]
[405825502,1771342242741,-42818.47928215,0.00014106,2]
[405825503,1771342242750,-500.0,0.00014109,2]
[405825504,1771342242760,-28698.0,0.00014127,2]
[405825505,1771342242769,-9035.0,0.00014171,2]
[405825506,1771342242779,-799.75222388,0.00014206,2]
[405825507,1771342242788,-494.56310307,0.00014206,2]
[405825508,1771342242798,-25420.76,0.00014222,2]
[405825509,1771342242807,-704.93,0.00014384,2]
[405825510,1771342242816,-200.0,0.00014384,2]
[405825511,1771342242825,-201.77822118,0.00014384,2]
[405825512,1771342242834,-503.55960548,0.00014384,2]
[405825513,1771342242844,-7658.84032483,0.0001439,2]
[405825514,1771342242854,-195.75,0.00014452,2]
[405825515,1771342242863,-2823.55,0.00014504,2]
[405825516,1771342242872,-151.0,0.00014634,2]
[405825517,1771342242882,-151.0,0.00014634,2]
[405825518,1771342242891,-35716.85477238,0.00014677,2]
[405825519,1771342242901,-201.41552809,0.00014932,2]
[405825520,1771342242910,-872.21,0.0001497,2]
[405825521,1771342242920,-250.0,0.00015,2]
[405825522,1771342242929,-5000.0,0.00015,2]
[405825523,1771342242939,-2055.50045313,0.00015,2]
[405825524,1771342242948,-8002.23365242,0.00015,2]
[405825525,1771342242957,-151.76907395,0.00015,2]
[405825528,1771342243197,-158.88346366,0.00015,5]
[405825529,1771342243213,-704.93,0.00015068,2]
[405825530,1771342243224,-298.95,0.00015207,2]
[405825531,1771342243235,-872.21,0.00015244,2]
[405825533,1771342243245,-1517.64,0.000153,2]
[405825535,1771342243255,-509.61038486,0.000154,2]
[405825537,1771342243264,-799.75222388,0.00015437,2]
[405825539,1771342243274,-776.66,0.00015502,2]
[405825540,1771342243283,-767.94,0.00015518,2]
[405825541,1771342243294,-160.0,0.00015586,2]
[405825542,1771342243303,-173.57638878,0.00015586,2]
[405825544,1771342243313,-1360.75,0.00015587,2]
[405825546,1771342243322,-500.0,0.00015587,2]
[405825548,1771342243331,-12649.0,0.00015588,2]
[405825550,1771342243340,-10970.655449,0.00015597,7]
[405825552,1771342243350,-1605.147551,0.00015616,7]
[405825554,1771342243359,-483.91978042,0.00015648,2]
[405825556,1771342243369,-35716.85477238,0.00015748,2]
[405825558,1771342243378,-704.93,0.00015753,2]
[405825560,1771342243388,-832.04,0.00015776,2]
[405825562,1771342243397,-4701.709479,0.00015782,7]
[405825564,1771342243407,-258.483569,0.00015785,7]
[405825566,1771342243416,-687.920379,0.00015785,7]
[405825568,1771342243425,-2245.73805852,0.00015807,2]
[405825570,1771342243434,-153.0,0.00015827,3]
[405825572,1771342243443,-191.03931122,0.00015885,2]
[405825574,1771342243453,-150.0,0.00015908,2]
[405825575,1771342243462,-5000.0,0.0001596,2]
[405825576,1771342243475,-5000.0,0.00016,2]
[405825577,1771342243485,-262.74959238,0.00016,2]
[405825578,1771342243496,-418.83903334,0.00016,2]
[405825579,1771342243505,-483.91978042,0.0001604,2]
[405825580,1771342243515,-234.9,0.00016103,2]
[405825581,1771342243527,-1000.0,0.00016145,7]
[405825582,1771342243537,-150.0,0.000162,2]
[405825583,1771342243547,-5000.00810426,0.000162,5]
[405825584,1771342243559,-9917.64356668,0.00016314,2]
[405825585,1771342243568,-200.0,0.0001634,2]
[405825586,1771342243579,-500.0,0.00016369,2]
[405825587,1771342243588,-500.0,0.00016369,2]
[405825588,1771342243598,-500.0,0.00016369,2]
[405825589,1771342243607,-500.0,0.00016369,2]
[405825590,1771342243617,-578.20924308,0.00016369,2]
[405825591,1771342243626,-500.0,0.00016369,2]
[405825592,1771342243636,-743.50770149,0.00016369,2]
[405825593,1771342243646,-500.0,0.00016369,2]
[405825594,1771342243655,-500.0,0.00016369,2]
[405825595,1771342243670,-500.0,0.00016369,2]
[405825596,1771342243688,-250.0,0.00016369,2]
[405825597,1771342243700,-500.0,0.00016369,2]
[405825598,1771342243711,-1000.0,0.00016369,2]
[405825599,1771342243722,-9552.16786547,0.00016369,2]
[405825600,1771342243731,-250.0,0.00016369,2]
[405825601,1771342243741,-3000.0,0.00016369,2]
[405825602,1771342243750,-500.0,0.00016369,2]
[405825603,1771342243760,-209.40437684,0.00016369,2]
[405825604,1771342243769,-1000.0,0.00016369,2]
[405825605,1771342243779,-250.0,0.00016369,2]
[405825606,1771342243788,-151.0,0.00016369,2]
[405825607,1771342243797,-500.0,0.00016369,2]
[405825608,1771342243807,-3000.0,0.00016369,2]
[405825609,1771342243816,-1000.0,0.00016369,2]
[405825610,1771342243825,-1428.38747117,0.00016369,2]
[405825611,1771342243835,-250.0,0.00016369,2]
[405825612,1771342243844,-151.0,0.00016369,2]
[405825613,1771342243853,-500.0,0.00016369,2]
[405825615,1771342243862,-3000.0,0.00016369,2]
[405825617,1771342243871,-1000.0,0.00016369,2]
[405825619,1771342243880,-250.0,0.00016369,2]
[405825620,1771342243889,-151.0,0.00016369,2]
[405825621,1771342243899,-500.0,0.00016369,2]
[405825622,1771342243908,-3000.0,0.00016369,2]
[405825623,1771342243917,-250.0,0.00016369,2]
[405825624,1771342243926,-151.0,0.00016369,2]
[405825625,1771342243935,-500.0,0.00016369,2]
[405825626,1771342243944,-1000.0,0.00016369,2]
[405825627,1771342243954,-3000.0,0.00016369,2]
[405825628,1771342243963,-250.0,0.00016369,2]
[405825629,1771342243974,-151.0,0.00016369,2]
[405825630,1771342243983,-500.0,0.00016369,2]
[405825631,1771342243993,-250.0,0.00016369,2]
[405825632,1771342244002,-500.0,0.00016369,2]
[405825633,1771342244012,-151.0,0.00016369,2]
[405825634,1771342244021,-250.0,0.00016369,2]
[405825635,1771342244031,-151.0,0.00016369,2]
[405825636,1771342244041,-250.0,0.00016369,2]
[405825637,1771342244050,-151.0,0.00016369,2]
[405825638,1771342244060,-250.0,0.00016369,2]
[405825639,1771342244069,-151.0,0.00016369,2]
[405825640,1771342244079,-500.0,0.00016369,2]
[405825641,1771342244088,-151.0,0.00016369,2]
[405825642,1771342244098,-500.0,0.00016369,2]
[405825643,1771342244107,-151.0,0.00016369,2]
[405825644,1771342244117,-500.0,0.00016369,2]
[405825645,1771342244126,-500.0,0.00016369,2]
[405825646,1771342244135,-1000.0,0.00016369,2]
[405825647,1771342244145,-250.0,0.00016369,2]
[405825648,1771342244154,-3000.0,0.00016369,2]
[405825649,1771342244164,-1000.0,0.00016369,2]
[405825650,1771342244173,-250.0,0.00016369,2]
[405825651,1771342244184,-1026.36214318,0.00016369,2]
[405825652,1771342244194,-3000.0,0.00016369,2]
[405825653,1771342244203,-253.83621088,0.00016369,2]
[405825654,1771342244213,-3000.0,0.00016369,2]
[405825655,1771342244224,-3000.0,0.00016369,2]
[405825656,1771342244234,-151.12957794,0.00016369,2]
[405825657,1771342244243,-2599.28707761,0.00016369,2]
[405825658,1771342244252,-721.12765535,0.00016369,2]
[405825659,1771342244262,-250.0,0.00016369,2]
[405825660,1771342244271,-250.0,0.00016369,2]
[405825661,1771342244280,-250.0,0.00016369,2]
[405825662,1771342244290,-250.0,0.00016369,2]
[405825663,1771342244299,-250.0,0.00016369,2]
[405825664,1771342244308,-250.0,0.00016369,2]
[405825665,1771342244318,-250.0,0.00016369,2]
[405825667,1771342244327,-250.0,0.00016369,2]
[405825668,1771342244336,-250.0,0.00016369,2]
[405825669,1771342244345,-250.0,0.00016369,2]
[405825670,1771342244354,-250.0,0.00016369,2]
[405825671,1771342244364,-250.0,0.00016369,2]
[405825672,1771342244373,-250.0,0.00016369,2]
[405825673,1771342244382,-250.0,0.00016369,2]
[405825674,1771342244398,-250.0,0.00016369,2]
[405825675,1771342244407,-250.0,0.00016369,2]
[405825676,1771342244416,-250.0,0.00016369,2]
[405825677,1771342244425,-250.0,0.00016369,2]
[405825678,1771342244434,-250.0,0.00016369,2]
[405825679,1771342244443,-250.0,0.00016369,2]
[405825680,1771342244452,-162.380719,0.00016369,2]
[405825681,1771342244462,-250.0,0.00016369,2]
[405825682,1771342244472,-250.0,0.00016369,2]
[405825683,1771342244487,-250.0,0.00016369,2]
[405825684,1771342244496,-250.0,0.00016369,2]
[405825685,1771342244505,-250.0,0.00016369,2]
[405825686,1771342244514,-250.0,0.00016369,2]
[405825687,1771342244525,-250.0,0.00016369,2]
[405825688,1771342244534,-160.0,0.00016369,2]
[405825689,1771342244543,-250.0,0.00016369,2]
[405825690,1771342244552,-693.3919763,0.00016369,2]
[405825691,1771342244563,-250.0,0.00016369,2]
[405825692,1771342244574,-250.0,0.00016369,2]
[405825693,1771342244584,-250.0,0.00016369,2]
[405825694,1771342244593,-250.0,0.00016369,2]
[405825695,1771342244602,-250.0,0.00016369,2]
[405825696,1771342244611,-250.0,0.00016369,2]
[405825697,1771342244624,-250.0,0.00016369,2]
[405825698,1771342244633,-209.40437684,0.00016369,2]
[405825699,1771342244642,-174.61919141,0.00016369,2]
[405825700,1771342244653,-200.0,0.00016369,2]
[405825701,1771342244662,-151.0,0.00016369,2]
[405825702,1771342244671,-3000.0,0.00016369,2]
[405825703,1771342244681,-3000.0,0.00016369,2]
[405825704,1771342244690,-250.0,0.00016369,2]
[405825705,1771342244700,-3000.0,0.00016369,2]
[405825706,1771342244709,-250.0,0.00016369,2]
[405825707,1771342244718,-3000.0,0.00016369,2]
[405825708,1771342244728,-250.0,0.00016369,2]
[405825709,1771342244737,-570.81608438,0.00016369,2]
[405825710,1771342244747,-250.0,0.00016369,2]
[405825711,1771342244756,-250.0,0.00016369,2]
[405825712,1771342244766,-250.0,0.00016369,2]
[405825713,1771342244778,-250.0,0.00016369,2]
[405825714,1771342244787,-250.0,0.00016369,2]
[405825715,1771342244797,-250.0,0.00016369,2]
[405825716,1771342244806,-250.0,0.00016369,2]
[405825717,1771342244816,-250.0,0.00016369,2]
[405825718,1771342244825,-277.35679052,0.00016369,2]
[405825719,1771342244835,-9905.5980765,0.00016424,2]
[405825720,1771342244844,-719.04747942,0.00016424,2]
[405825721,1771342244854,-151.0,0.00016424,2]
[405825722,1771342244863,-150.0,0.00016425,2]
[405825723,1771342244873,-500.0,0.00016437,2]
[405825724,1771342244882,-2466.7,0.00016438,2]
[405825725,1771342244892,-704.93,0.00016438,2]
[405825726,1771342244901,-10272.10520533,0.00016479,2]
[405825727,1771342244911,-745.65223616,0.00016479,2]
[405825728,1771342244920,-151.0,0.00016479,2]
[405825729,1771342244930,-173.0767049,0.00016492,2]
[405825730,1771342244939,-2125.36664557,0.00016534,2]
[405825731,1771342244949,-773.2413689,0.00016534,2]
[405825732,1771342244959,-151.0,0.00016534,2]
[405825733,1771342244968,-500.0,0.00016573,2]
[405825734,1771342244977,-500.0,0.00016573,2]
[405825735,1771342244986,-150.0,0.00016573,2]
[405825736,1771342244996,-500.0,0.00016573,2]
[405825737,1771342245006,-500.0,0.00016573,2]
[405825738,1771342245016,-500.0,0.00016573,2]
[405825739,1771342245027,-150.0,0.00016573,2]
[405825740,1771342245037,-500.0,0.00016573,2]
[405825741,1771342245047,-500.0,0.00016573,2]
[405825742,1771342245056,-150.0,0.00016573,2]
[405825743,1771342245066,-150.0,0.00016573,2]
[405825744,1771342245075,-500.0,0.00016573,2]
[405825745,1771342245085,-151.02878078,0.00016573,2]
[405825746,1771342245094,-154.86539372,0.00016573,2]
[405825747,1771342245104,-500.0,0.00016573,2]
[405825748,1771342245113,-500.0,0.00016573,2]
[405825749,1771342245123,-150.0,0.00016573,2]
[405825750,1771342245132,-500.0,0.00016573,2]
[405825751,1771342245142,-237.28842339,0.00016573,2]
[405825752,1771342245151,-214.0121963,0.00016573,2]
[405825753,1771342245160,-500.0,0.00016573,2]
[405825754,1771342245169,-500.0,0.00016573,2]
[405825755,1771342245179,-500.0,0.00016573,2]
[405825756,1771342245188,-150.31509327,0.00016573,2]
[405825757,1771342245198,-500.0,0.00016573,2]
[405825758,1771342245207,-596.0,0.00016573,2]
[405825759,1771342245218,-500.0,0.00016573,2]
[405825760,1771342245228,-150.0,0.00016573,2]
[405825761,1771342245237,-500.0,0.00016573,2]
[405825762,1771342245247,-801.85129955,0.00016589,2]
[405825763,1771342245256,-151.0,0.00016589,2]
[405825764,1771342245265,-500.0,0.00016628,2]
[405825765,1771342245274,-500.0,0.00016628,2]
[405825766,1771342245284,-150.07216309,0.00016628,2]
[405825767,1771342245294,-502.16866536,0.00016628,2]
[405825768,1771342245303,-500.0,0.00016628,2]
[405825769,1771342245312,-500.0,0.00016628,2]
[405825770,1771342245322,-500.0,0.00016628,2]
[405825771,1771342245331,-500.0,0.00016628,2]
[405825772,1771342245340,-500.0,0.00016628,2]
[405825773,1771342245349,-500.0,0.00016628,2]
[405825774,1771342245359,-500.0,0.00016628,2]
[405825775,1771342245368,-150.0,0.00016628,2]
[405825776,1771342245378,-500.0,0.00016628,2]
[405825777,1771342245391,-500.0,0.00016628,2]
[405825778,1771342245400,-500.0,0.00016628,2]
[405825779,1771342245410,-500.0,0.00016628,2]
[405825780,1771342245419,-500.0,0.00016628,2]
[405825781,1771342245428,-596.0,0.00016628,2]
[405825782,1771342245438,-500.0,0.00016628,2]
[405825783,1771342245447,-150.0,0.00016628,2]
[405825784,1771342245456,-500.0,0.00016628,2]
[405825785,1771342245465,-831.51979763,0.00016644,2]
[405825786,1771342245477,-151.0,0.00016644,2]
[405825787,1771342245490,-150.0,0.0001665,2]
[405825788,1771342245499,-799.75222388,0.00016669,2]
[405825789,1771342245509,-500.0,0.00016683,2]
[405825790,1771342245519,-500.0,0.00016683,2]
[405825791,1771342245529,-537.18600864,0.00016683,2]
[405825792,1771342245538,-500.0,0.00016683,2]
[405825793,1771342245626,-500.0,0.00016683,2]
[405825794,1771342245636,-500.0,0.00016683,2]
[405825795,1771342245645,-500.0,0.00016683,2]
[405825796,1771342245654,-500.0,0.00016683,2]
[405825797,1771342245663,-200.0,0.00016683,2]
[405825798,1771342245672,-500.0,0.00016683,2]
[405825799,1771342245681,-500.0,0.00016683,2]
[405825800,1771342245690,-500.0,0.00016683,2]
[405825801,1771342245699,-500.0,0.00016683,2]
[405825802,1771342245708,-500.0,0.00016683,2]
[405825803,1771342245719,-500.0,0.00016683,2]
[405825804,1771342245728,-596.0,0.00016683,2]
[405825805,1771342245738,-616.5683879,0.00016683,2]
[405825806,1771342245747,-201.09695119,0.00016683,2]
[405825807,1771342245756,-500.0,0.00016683,2]
[405825808,1771342245765,-862.28603014,0.00016699,2]
[405825809,1771342245775,-151.0,0.00016699,2]
[405825810,1771342245784,-500.0,0.00016737,2]
[405825811,1771342245794,-510.76125773,0.00016737,2]
[405825812,1771342245803,-500.0,0.00016737,2]
[405825813,1771342245812,-500.0,0.00016737,2]
[405825814,1771342245820,-500.0,0.00016737,2]
[405825815,1771342245829,-500.0,0.00016737,2]
[405825816,1771342245838,-187.36614029,0.00016737,2]
[405825817,1771342245847,-500.0,0.00016737,2]
[405825818,1771342245856,-500.0,0.00016737,2]
[405825819,1771342245865,-500.0,0.00016737,2]